bitfinex-derivatives/quotes_SOLF0:USTF0_20260305
["timestamp","ask_amount","ask_price","bid_price","bid_amount"]
[1772700352180,9.949,90.446,90.37,9.957]
[1772700352376,8.66079122,90.445,90.37,9.957]
[1772700352775,8.66079122,90.429,90.36,7.55505055]
[1772700353773,9.951,90.426,90.361,9.958]
[1772700353981,18.61599766,90.426,90.361,9.958]
[1772700354379,8.66499766,90.426,90.361,9.958]
[1772700356676,8.66499766,90.426,90.371,9.957]
[1772700357069,8.6657354,90.442,90.36,7.55505055]
[1772700357272,7.55505055,90.48,90.38,7.55505055]
[1772700357273,8.6657354,90.479,90.38,7.55505055]
[1772700358077,8.6657354,90.449,90.377,9.956]
[1772700358584,8.6657354,90.438,90.377,9.956]
[1772700358781,8.6657354,90.438,90.385,9.955]
[1772700359183,8.6657354,90.438,90.375,9.956]
[1772700359879,9.95,90.437,90.365,9.958]
[1772700360080,8.66695334,90.436,90.365,9.958]
[1772700360791,8.66695334,90.434,90.365,9.958]
[1772700361490,7.55505055,90.48,90.36,7.55505055]
[1772700361491,8.66329858,90.432,90.36,7.55505055]
[1772700361989,8.66329858,90.432,90.356,9.959]
[1772700362387,8.66329858,90.424,90.356,9.959]
[1772700362689,8.66329858,90.424,90.363,9.958]
[1772700362991,8.66329858,90.424,90.36,9.958]
[1772700364484,8.68432084,90.422,90.36,9.958]
[1772700365391,8.68899714,90.42,90.36,9.958]
[1772700365893,8.68899714,90.42,90.351,9.959]
[1772700368995,8.68899714,90.42,90.33,7.55505055]
[1772700369495,8.68899714,90.42,90.359,9.958]
[1772700369799,8.6682295,90.419,90.33,7.55505055]
[1772700370396,8.6682295,90.419,90.351,9.959]
[1772700370989,8.6682295,90.419,90.343,9.96]
[1772700371795,8.66390542,90.416,90.33,7.55505055]
[1772700372888,8.66390542,90.416,90.34,9.96]
[1772700373086,8.66393975,90.399,90.292,19.932]
[1772700373285,8.66393975,90.399,90.32,7.55505055]
[1772700373793,8.66393975,90.399,90.333,9.961]
[1772700375396,8.66393975,90.399,90.34,9.96]
[1772700375800,8.66393975,90.399,90.34,17.51377832]
[1772700376095,8.66393975,90.399,90.331,9.961]
[1772700378193,8.73996864,90.397,90.307,9.964]
[1772700378398,8.73996864,90.397,90.3,7.55377832]
[1772700378790,8.73996864,90.382,90.3,7.55377832]
[1772700379988,8.73367308,90.379,90.31,9.964]
[1772700380795,13.32501822,90.438,90.3,7.55377832]
[1772700380796,8.73367308,90.409,90.34,7.55377832]
[1772700381697,8.73367308,90.409,90.352,9.959]
[1772700385900,8.73367308,90.409,90.34,7.55377832]
[1772700386101,8.68412426,90.449,90.36,7.55377832]
[1772700386504,8.68412426,90.432,90.36,7.55377832]
[1772700386705,8.68412426,90.432,90.38,7.55377832]
[1772700387408,8.68412426,90.432,90.38,17.50977832]
[1772700390914,8.68412426,90.432,90.38,7.55377832]
[1772700391616,8.68412426,90.432,90.36,7.55377832]
[1772700391806,8.68412426,90.432,90.34,7.55377832]
[1772700392312,8.70963815,90.412,90.353,9.959]
[1772700392712,8.70963815,90.412,90.34,7.55377832]
[1772700393409,8.7079037,90.401,90.32,7.55377832]
[1772700393609,7.55377832,90.4,90.32,7.55377832]
[1772700393809,8.7079037,90.399,90.3,7.55377832]
[1772700394207,8.7079037,90.389,90.322,9.962]
[1772700395315,8.7079037,90.389,90.33,9.961]
[1772700396215,8.7079037,90.389,90.313,9.963]
[1772700400014,9.955,90.388,90.313,9.963]
[1772700400219,8.71405877,90.387,90.313,9.963]
[1772700400617,9.955,90.388,90.313,9.963]
[1772700400618,8.71405877,90.379,90.33,3.52634916]
[1772700401516,8.7201797,90.405,90.36,3.52634916]
[1772700401714,8.7201797,90.405,90.37,3.52634916]
[1772700402018,8.7201797,90.405,90.36,3.52634916]
[1772700403010,8.7201797,90.403,90.36,3.52634916]
[1772700403224,154.721,90.472,90.294,19.931]
[1772700403225,8.71761784,90.399,90.34,3.52634916]
[1772700403523,3.52634916,90.38,90.33,3.52634916]
[1772700403720,8.71761784,90.379,90.33,3.52634916]
[1772700405022,8.71761784,90.379,90.26,26.98388351]
[1772700405023,3.52634916,90.4,90.35,3.52634916]
[1772700405221,8.72100258,90.389,90.33,3.52634916]
[1772700406519,8.72100258,90.379,90.33,3.52634916]
[1772700408318,8.69743776,90.394,90.35,3.52634916]
[1772700409129,8.69743776,90.394,90.334,9.961]
[1772700409329,8.69957602,90.389,90.34,3.52634916]
[1772700409928,8.69957602,90.389,90.35,3.52634916]
[1772700410929,8.69957602,90.389,90.34,3.52634916]
[1772700412027,8.69957602,90.389,90.334,9.961]
[1772700412228,8.69957602,90.389,90.34,3.52634916]
[1772700412424,8.69957602,90.389,90.334,9.961]
[1772700412629,8.69957602,90.389,90.342,9.96]
[1772700413925,8.69957602,90.389,90.333,9.961]
[1772700416132,8.69957602,90.389,90.325,9.962]
[1772700418228,9.955,90.387,90.325,9.962]
[1772700418428,8.69528269,90.386,90.3,7.55413869]
[1772700419032,8.69528269,90.374,90.309,9.964]
[1772700420434,8.69528269,90.374,90.316,9.963]
[1772700421431,8.69783863,90.37,90.28,7.55413869]
[1772700422040,8.69783863,90.365,90.306,9.964]
[1772700422538,8.69783863,90.365,90.3,7.55413869]
[1772700423830,8.69783863,90.365,90.28,7.55413869]
[1772700424637,8.69783863,90.365,90.306,9.964]
[1772700425041,8.6991607,90.356,90.297,9.965]
[1772700425833,8.71260008,90.354,90.286,9.966]
[1772700427235,8.71260008,90.354,90.293,9.965]
[1772700427436,8.71260008,90.354,90.26,7.55413869]
[1772700428744,8.68104333,90.339,90.26,7.55413869]
[1772700430141,8.68104333,90.339,90.28,9.967]
[1772700430340,8.68104333,90.339,90.26,7.55413869]
[1772700431036,8.68104333,90.339,90.271,9.968]
[1772700431239,8.68104333,90.339,90.26,7.55413869]
[1772700432343,8.68104333,90.339,90.196,26.98388351]
[1772700432344,8.68104333,90.339,90.261,9.969]
[1772700432646,8.72012219,90.319,90.27,3.53143112]
[1772700433645,8.72012219,90.319,90.26,3.53143112]
[1772700434239,8.71911773,90.329,90.28,3.53143112]
[1772700434549,8.71911773,90.329,90.29,3.52989926]
[1772700435639,8.71911773,90.329,90.28,3.52989926]
[1772700436450,8.71043842,90.366,90.29,3.52989926]
[1772700436646,8.71043842,90.349,90.3,3.52989926]
[1772700437049,8.71043842,90.349,90.31,3.52989926]
[1772700437651,8.71043842,90.349,90.3,3.52989926]
[1772700438253,8.71043842,90.349,90.29,9.966]
[1772700438549,8.71043842,90.349,90.3,3.52989926]
[1772700438749,8.71043842,90.349,90.31,3.52989926]
[1772700439651,8.71043842,90.349,90.249,19.941]
[1772700439851,8.71043842,90.349,90.3,3.52989926]
[1772700440650,8.71043842,90.349,90.31,3.52989926]
[1772700440956,8.71085063,90.363,90.31,3.52989926]
[1772700441157,8.71085063,90.363,90.26,19.939]
[1772700441158,8.71085063,90.363,90.32,3.52989926]
[1772700442052,8.73855099,90.379,90.33,3.52989926]
[1772700442449,3.52989926,90.39,90.34,3.52989926]
[1772700442656,8.73855099,90.389,90.34,3.52989926]
[1772700445052,8.73855099,90.389,90.35,3.52989926]
[1772700445548,8.74527668,90.408,90.37,3.52989926]
[1772700446054,8.74527668,90.431,90.38,3.52989926]
[1772700446254,8.74527668,90.429,90.37,3.52989926]
[1772700446559,8.74527668,90.419,90.37,3.52989926]
[1772700446759,8.74527668,90.419,90.38,3.52989926]
[1772700447354,8.74527668,90.419,90.37,3.52989926]
[1772700449257,8.74527668,90.419,90.36,3.52989926]
[1772700449862,8.74527668,90.419,90.37,3.52989926]
[1772700451857,1.92536979,90.452,90.35,3.52989926]
[1772700451858,3.52989926,90.4,90.35,3.52989926]
[1772700452060,8.73218874,90.379,90.33,3.52989926]
[1772700452361,8.73218874,90.379,90.26,26.98388351]
[1772700452362,8.73218874,90.379,90.34,3.52989926]
[1772700453853,8.73218874,90.379,90.342,9.96]
[1772700454057,8.72192496,90.399,90.36,3.52989926]
[1772700454259,8.72192496,90.399,90.37,3.52989926]
[1772700454659,8.72192496,90.399,90.36,3.52989926]
[1772700454864,8.72192496,90.399,90.35,3.52989926]
[1772700455664,8.72192496,90.399,90.36,3.52989926]
[1772700458560,8.72192496,90.399,90.34,3.52989926]
[1772700459160,8.72192496,90.399,90.341,9.96]
[1772700459363,8.72192496,90.399,90.35,3.52989926]
[1772700459969,8.70922876,90.389,90.34,3.52989926]
[1772700460161,3.52989926,90.37,90.32,3.52989926]
[1772700460360,8.70922876,90.369,90.309,9.964]
[1772700460556,8.70922876,90.359,90.31,3.52989926]
[1772700460756,3.52989926,90.35,90.3,3.52989926]
[1772700460960,8.70922876,90.349,90.3,3.52989926]
[1772700461968,8.70922876,90.349,90.31,3.52989926]
[1772700462262,8.69579733,90.369,90.32,3.52989926]
[1772700462471,8.69579733,90.369,90.3,7.55785779]
[1772700463161,8.69579733,90.369,90.28,7.55785779]
[1772700463568,8.69579733,90.369,90.29,9.966]
[1772700464468,8.69517924,90.365,90.29,9.966]
[1772700464668,8.69517924,90.365,90.299,9.965]
[1772700464862,8.69517924,90.365,90.28,7.55785779]
[1772700465169,8.69517924,90.362,90.28,7.55785779]
[1772700465760,8.69515679,90.359,90.28,7.55785779]
[1772700466569,8.69515679,90.359,90.286,9.966]
[1772700466767,8.69515679,90.359,90.28,7.55785779]
[1772700467167,8.68723164,90.356,90.28,7.55785779]
[1772700467361,8.68723164,90.356,90.276,9.967]
[1772700467561,8.68723164,90.349,90.26,7.55785779]
[1772700468568,8.68723164,90.341,90.266,9.968]
[1772700469162,8.68708178,90.339,90.266,9.968]
[1772700469565,8.68708178,90.339,90.275,9.968]
[1772700470565,8.68708178,90.336,90.264,9.969]
[1772700471761,7.55785779,90.33,90.253,9.97]
[1772700471968,8.68449212,90.329,90.253,9.97]
[1772700472472,8.68449212,90.327,90.253,9.97]
[1772700472866,8.68449212,90.327,90.24,7.55785779]
[1772700473973,8.68449212,90.327,90.252,9.97]
[1772700474771,8.68449212,90.327,90.182,26.98388351]
[1772700474772,8.69681849,90.315,90.22,7.55785779]
[1772700474970,8.69681849,90.315,90.24,7.55785779]
[1772700475370,8.69681849,90.315,90.25,9.97]
[1772700478380,8.70623388,90.314,90.24,9.971]
[1772700478575,8.70623388,90.309,90.24,9.971]
[1772700480881,8.70536813,90.306,90.24,9.971]
[1772700481282,8.70536813,90.306,90.23,7.55785779]
[1772700481883,8.70536813,90.306,90.26,9.969]
[1772700482384,8.70536813,90.306,90.23,7.55785779]
[1772700482581,8.70536813,90.306,90.251,9.97]
[1772700483585,8.70536813,90.306,90.26,3.53220535]
[1772700484085,8.70536813,90.306,90.25,3.53220535]
[1772700484584,8.70536813,90.306,90.186,155.21]
[1772700484585,8.70536813,90.306,90.26,3.53220535]
[1772700485885,8.70536813,90.306,90.261,9.969]
[1772700488284,8.70536813,90.306,90.26,3.53220535]
[1772700488881,8.70536813,90.306,90.27,3.53220535]
[1772700490286,8.70536813,90.306,90.272,9.968]
[1772700490684,8.70536813,90.306,90.27,3.53220535]
[1772700490884,8.70536813,90.306,90.26,3.53220535]
[1772700491084,8.70536813,90.306,90.249,9.97]
[1772700491290,8.72172409,90.299,90.25,3.53220535]
[1772700492390,8.72172409,90.299,90.26,3.53220535]
[1772700492888,8.72172409,90.299,90.25,3.53220535]
[1772700494186,8.72172409,90.299,90.241,9.971]
[1772700494586,8.72172409,90.299,90.25,3.53220535]
[1772700494885,8.72172409,90.299,90.26,3.53220535]
[1772700495790,8.71116263,90.321,90.27,3.53220535]
[1772700495990,8.71116263,90.319,90.28,3.53220535]
[1772700496192,8.71116263,90.319,90.27,3.53220535]
[1772700496493,8.71116263,90.319,90.27,3.53079869]
[1772700497497,8.70846427,90.333,90.3,3.53079869]
[1772700498383,19.06958236,90.394,90.198,11.06]
[1772700498384,8.70846427,90.329,90.198,11.06]
[1772700498589,8.70846427,90.319,90.28,3.53079869]
[1772700500589,8.70846427,90.319,90.27,3.53079869]
[1772700500794,8.70846427,90.319,90.28,3.53079869]
[1772700502290,8.70846427,90.319,90.29,3.53079869]
[1772700502491,8.79240755,90.339,90.29,3.53079869]
[1772700504490,3.53079869,90.33,90.282,9.967]
[1772700504694,8.7922159,90.329,90.28,3.53079869]
[1772700507698,8.7922159,90.329,90.273,9.968]
[1772700508402,9.96,90.34,90.273,9.968]
[1772700508403,8.78973314,90.319,90.273,9.968]
[1772700508594,8.78973314,90.319,90.27,3.53079869]
[1772700508795,8.78973314,90.331,90.28,3.53079869]
[1772700509000,8.78973314,90.331,90.29,3.53079869]
[1772700509606,8.78973314,90.331,90.227,19.946]
[1772700509607,8.78973314,90.331,90.28,3.53079869]
[1772700509793,8.78981822,90.329,90.27,3.53079869]
[1772700509997,8.78981822,90.309,90.27,3.53079869]
[1772700510694,8.78981822,90.329,90.29,3.53079869]
[1772700511001,8.78981822,90.329,90.3,3.53079869]
[1772700511202,8.78981822,90.329,90.282,9.967]
[1772700511397,8.78981822,90.329,90.3,3.53079869]
[1772700511801,8.57635364,90.345,90.3,3.53079869]
[1772700511999,8.57635364,90.345,90.226,26.98388351]
[1772700512000,8.78097037,90.365,90.33,3.53079869]
[1772700512407,8.78097037,90.365,90.25,27.29449548]
[1772700512701,8.78097037,90.365,90.33,3.53079869]
[1772700513098,8.57239737,90.375,90.33,3.53079869]
[1772700513299,8.79612135,90.383,90.35,3.53079869]
[1772700513500,8.79612135,90.383,90.239,155.12]
[1772700513501,3.53079869,90.38,90.273,27.29449548]
[1772700513705,8.79612135,90.369,90.32,3.53079869]
[1772700513901,8.79612135,90.369,90.248,47.23549548]
[1772700514098,8.79612135,90.369,90.32,3.53079869]
[1772700514902,8.79612135,90.369,90.33,3.53079869]
[1772700515903,8.79612135,90.369,90.31,3.53079869]
[1772700516304,8.79612135,90.369,90.32,3.53079869]
[1772700517209,8.79612135,90.369,90.259,19.939]
[1772700517210,8.79612135,90.369,90.33,3.53079869]
[1772700517406,8.79612135,90.369,90.32,3.53079869]
[1772700519205,8.79612135,90.369,90.299,9.965]
[1772700519409,8.79612135,90.369,90.32,3.53079869]
[1772700519608,8.79612135,90.369,90.34,3.53079869]
[1772700519807,8.86538692,90.399,90.35,3.53079869]
[1772700520112,8.86538692,90.399,90.36,3.53079869]
[1772700520309,8.86538692,90.399,90.37,3.53079869]
[1772700520511,8.86538692,90.419,90.37,3.53079869]
[1772700520712,3.53079869,90.41,90.36,3.53079869]
[1772700521014,8.86538692,90.409,90.36,3.53079869]
[1772700522312,8.86175364,90.399,90.35,3.53079869]
[1772700522716,8.86175364,90.379,90.33,3.53079869]
[1772700522912,8.86175364,90.379,90.35,3.53079869]
[1772700523110,8.86175364,90.399,90.35,3.53079869]
[1772700523307,8.86175364,90.399,90.34,3.53079869]
[1772700523308,3.53079869,90.39,90.34,3.53079869]
[1772700523515,8.93902457,90.389,90.34,3.53079869]
[1772700524517,3.53079869,90.37,90.294,9.965]
[1772700524717,8.93902457,90.369,90.32,3.53079869]
[1772700525417,8.92850337,90.349,90.282,9.967]
[1772700525610,8.92850337,90.349,90.3,3.53079869]
[1772700525813,8.92850337,90.349,90.282,9.967]
[1772700526013,8.92850337,90.339,90.29,3.53079869]
[1772700526215,3.53079869,90.33,90.28,3.53079869]
[1772700526410,12.45930206,90.33,90.28,3.53079869]
[1772700526614,8.92850337,90.33,90.28,3.53079869]
[1772700527319,8.92850337,90.33,90.29,3.53079869]
[1772700528413,8.92850337,90.33,90.28,9.967]
[1772700529220,13.68816835,90.397,90.27,7.56298912]
[1772700529221,8.92708313,90.359,90.27,7.56298912]
[1772700529715,8.92708313,90.358,90.288,9.966]
[1772700530718,8.92708313,90.354,90.27,7.56298912]
[1772700531521,8.92708313,90.354,90.283,9.967]
[1772700532714,8.84011299,90.352,90.283,9.967]
[1772700535023,8.84011299,90.352,90.292,9.966]
[1772700536318,8.84011299,90.352,90.283,9.967]
[1772700537720,8.84011299,90.352,90.27,7.56298912]
[1772700537721,8.84011299,90.352,90.291,9.966]
[1772700538826,8.84011299,90.352,90.299,9.965]
[1772700540235,8.84011299,90.352,90.307,9.964]
[1772700540426,8.84011299,90.352,90.29,7.56298912]
[1772700541429,8.84011299,90.352,90.315,9.963]
[1772700541631,8.84011299,90.352,90.29,7.56298912]
[1772700542026,8.84011299,90.352,90.306,9.964]
[1772700545832,8.84011299,90.352,90.298,9.965]
[1772700546033,8.84011299,90.352,90.27,7.56298912]
[1772700546336,8.84011299,90.352,90.296,9.965]
[1772700546738,8.59789587,90.351,90.27,7.56298912]
[1772700547138,7.56298912,90.34,90.25,7.56298912]
[1772700547335,8.58751629,90.339,90.25,7.56298912]
[1772700548430,8.58751629,90.319,90.27,3.53107402]
[1772700549036,8.58751629,90.339,90.28,3.53107402]
[1772700549337,8.58751629,90.339,90.3,3.53107402]
[1772700549534,8.58751629,90.339,90.29,3.53107402]
[1772700550433,8.58751629,90.339,90.28,3.53107402]
[1772700551038,8.58664446,90.329,90.28,3.53107402]
[1772700551442,8.58664446,90.329,90.283,9.967]
[1772700551631,8.58664446,90.329,90.29,3.53107402]
[1772700552934,3.53107402,90.32,90.266,9.968]
[1772700553138,3.53107402,90.31,90.266,9.968]
[1772700553337,8.53950333,90.309,90.266,9.968]
[1772700554442,8.53950333,90.309,90.198,11.06]
[1772700554443,8.53950333,90.339,90.29,3.53107402]
[1772700554844,8.53950333,90.339,90.3,3.53107402]
[1772700555443,8.53950333,90.339,90.222,155.148]
[1772700555740,8.53950333,90.339,90.29,3.53107402]
[1772700555944,8.53950333,90.339,90.3,3.53107402]
[1772700556144,8.42279711,90.359,90.311,9.963]
[1772700558946,8.42279711,90.359,90.29,7.55933619]
[1772700560447,8.42279711,90.359,90.31,9.964]
[1772700561647,8.42279711,90.359,90.319,9.963]
[1772700561850,8.21174652,90.382,90.31,7.55933619]
[1772700562246,8.21174652,90.382,90.327,9.962]
[1772700563545,8.21174652,90.382,90.335,9.961]
[1772700563756,8.21174652,90.382,90.33,7.55933619]
[1772700563949,8.1726823,90.397,90.33,7.55933619]
[1772700564650,8.1726823,90.397,90.361,9.958]
[1772700565751,8.1726823,90.397,90.352,9.959]
[1772700566348,8.1726823,90.397,90.36,9.958]
[1772700566551,8.17339556,90.421,90.36,9.958]
[1772700568451,13.68816835,90.457,90.35,7.55933619]
[1772700568452,8.19110307,90.418,90.35,9.959]
[1772700568653,8.19110307,90.418,90.33,7.55933619]
[1772700568654,8.19110307,90.418,90.31,7.55933619]
[1772700569050,8.53888535,90.419,90.31,7.55933619]
[1772700569051,8.19110307,90.416,90.31,7.55933619]
[1772700569252,8.19110307,90.416,90.35,7.55933619]
[1772700569549,8.19040112,90.45,90.37,7.55933619]
[1772700572057,8.19040112,90.45,90.396,9.954]
[1772700574151,8.19040112,90.45,90.386,9.955]
[1772700577160,8.19040112,90.45,90.394,9.954]
[1772700578159,8.19040112,90.45,90.37,7.55933619]
[1772700578566,3.52130771,90.44,90.39,3.52130771]
[1772700578865,8.10217545,90.439,90.4,3.52130771]
[1772700579060,8.10217545,90.459,90.41,3.52130771]
[1772700580065,8.09805589,90.479,90.43,3.52130771]
[1772700580264,3.52130771,90.47,90.42,3.52130771]
[1772700580462,8.09805589,90.469,90.42,3.52130771]
[1772700580661,8.09805589,90.469,90.41,3.52130771]
[1772700580662,3.52130771,90.46,90.41,3.52130771]
[1772700580866,8.09805589,90.459,90.41,3.52130771]
[1772700583569,8.09805589,90.459,90.304,11.06]
[1772700583570,3.52130771,90.49,90.431,9.95]
[1772700583865,7.97806683,90.489,90.43,3.52130771]
[1772700584066,7.97806683,90.479,90.43,3.52130771]
[1772700585363,7.97806683,90.479,90.44,3.52130771]
[1772700586967,7.97806683,90.479,90.438,9.95]
[1772700586968,7.97806683,90.479,90.43,3.52130771]
[1772700590369,7.97806683,90.479,90.431,9.95]
[1772700590576,7.97806683,90.479,90.43,3.52130771]
[1772700590776,7.91736061,90.469,90.42,3.52130771]
[1772700591974,7.91736061,90.469,90.42,13.47330771]
[1772700593472,7.91736061,90.469,90.43,3.52130771]
[1772700594085,7.9255467,90.495,90.44,3.52130771]
[1772700594274,7.9255467,90.489,90.44,3.52130771]
[1772700594776,3.52130771,90.48,90.43,3.52130771]
[1772700594978,7.9255467,90.479,90.43,3.52130771]
[1772700596379,7.9255467,90.479,90.432,9.95]
[1772700596594,7.9255467,90.479,90.44,3.52130771]
[1772700597085,7.9255467,90.479,90.43,3.52130771]
[1772700598485,7.9255467,90.479,90.431,9.95]
[1772700600487,7.9255467,90.479,90.423,9.951]
[1772700600689,7.92882759,90.469,90.423,9.951]
[1772700601582,7.92882759,90.469,90.372,19.914]
[1772700601788,7.85001002,90.459,90.401,9.954]
[1772700602086,7.85001002,90.459,90.4,3.52130771]
[1772700602390,7.85001002,90.459,90.411,9.953]
[1772700602989,7.85001002,90.459,90.42,9.952]
[1772700603486,7.85001002,90.459,90.411,9.952]
[1772700604987,7.85001002,90.459,90.41,3.52130771]
[1772700605193,7.94947858,90.449,90.402,9.953]
[1772700606891,7.9369761,90.439,90.382,9.956]
[1772700607197,7.9369761,90.439,90.39,3.52130771]
[1772700608594,7.9369761,90.439,90.382,9.956]
[1772700609096,7.9369761,90.439,90.39,9.955]
[1772700609496,7.9369761,90.439,90.4,3.52130771]
[1772700609688,7.9369761,90.439,90.4,13.47530771]
[1772700610689,7.9369761,90.439,90.4,9.954]
[1772700610893,7.9369761,90.439,90.4,13.47530771]
[1772700611996,7.9369761,90.439,90.4,9.954]
[1772700613199,7.9369761,90.439,90.409,9.953]
[1772700613798,7.9369761,90.439,90.4,3.52130771]
[1772700613799,7.9369761,90.439,90.401,9.954]
[1772700613994,7.9369761,90.439,90.39,3.52130771]
[1772700614194,7.9369761,90.439,90.406,9.953]
[1772700614399,7.9369761,90.439,90.4,3.52130771]
[1772700614594,7.9369761,90.439,90.39,3.52130771]
[1772700615399,7.9369761,90.439,90.401,9.954]
[1772700616397,7.9369761,90.439,90.39,3.52130771]
[1772700616599,7.9369761,90.439,90.39,3.52172873]
[1772700617201,7.92661916,90.419,90.37,3.52172873]
[1772700618600,7.92661916,90.419,90.371,9.957]
[1772700618797,7.92661916,90.419,90.37,3.52172873]
[1772700619101,7.92661916,90.419,90.314,19.927]
[1772700619102,7.92661916,90.409,90.362,9.958]
[1772700620503,7.92661916,90.409,90.369,9.957]
[1772700621799,7.95759469,90.432,90.38,3.52172873]
[1772700622004,7.95759469,90.429,90.38,3.52172873]
[1772700622304,7.95759469,90.419,90.37,3.52172873]
[1772700622504,7.95759469,90.419,90.36,3.52172873]
[1772700623005,7.95759469,90.409,90.371,9.957]
[1772700624101,7.9649418,90.434,90.39,3.52172873]
[1772700625706,7.9649418,90.434,90.389,9.955]
[1772700628610,7.9649418,90.434,90.39,3.52172873]
[1772700629003,3.52172873,90.43,90.38,3.52172873]
[1772700629205,7.96086977,90.429,90.38,3.52172873]
[1772700629410,7.96086977,90.429,90.37,3.52172873]
[1772700629709,3.52172873,90.42,90.37,3.52172873]
[1772700629900,7.96264427,90.419,90.37,3.52172873]
[1772700631309,7.96264427,90.419,90.37,13.47872873]
[1772700634313,7.96625035,90.409,90.314,19.927]
[1772700634512,7.96625035,90.409,90.36,3.52172873]
[1772700635117,3.52172873,90.43,90.37,3.52172873]
[1772700635314,8.00863938,90.429,90.37,3.52172873]
[1772700636317,8.00863938,90.429,90.371,9.957]
[1772700638621,11.55006979,90.42,90.371,9.957]
[1772700638822,8.02834106,90.419,90.371,9.957]
[1772700639922,8.02834106,90.419,90.378,9.956]
[1772700640122,8.02834106,90.419,90.38,3.52172873]
[1772700640823,8.03700821,90.438,90.382,9.956]
[1772700641023,8.03700821,90.429,90.304,155.006]
[1772700641324,8.03700821,90.429,90.381,9.956]
[1772700643823,8.03700821,90.429,90.372,9.957]
[1772700644126,8.03600126,90.427,90.372,9.957]
[1772700644327,8.03600126,90.426,90.37,3.52172873]
[1772700645626,8.03600126,90.426,90.379,9.956]
[1772700646029,3.52172873,90.42,90.379,9.956]
[1772700646227,8.03959182,90.419,90.379,9.956]
[1772700646428,8.03959182,90.419,90.371,9.957]
[1772700646822,10.29312182,90.445,90.303,204.2221791]
[1772700646823,8.03959182,90.435,90.39,3.52172873]
[1772700647319,8.03959182,90.435,90.389,9.955]
[1772700647516,8.03959182,90.435,90.38,3.52172873]
[1772700647722,9.949,90.448,90.38,3.52172873]
[1772700647723,8.04004315,90.429,90.38,3.52172873]
[1772700648328,8.04004315,90.429,90.381,9.956]
[1772700649130,3.52172873,90.42,90.373,9.957]
[1772700649428,8.0332098,90.419,90.373,9.957]
[1772700651236,8.0332098,90.417,90.373,9.957]
[1772700653134,8.03762255,90.43,90.39,3.52172873]
[1772700653732,8.58317114,90.429,90.39,3.52172873]
[1772700653941,8.03742435,90.447,90.4,3.52172873]
[1772700654229,8.58190085,90.446,90.4,3.52172873]
[1772700654434,8.58190085,90.445,90.41,3.52172873]
[1772700654629,8.58190085,90.444,90.4,3.52172873]
[1772700654829,8.58190085,90.443,90.4,3.52172873]
[1772700655026,8.58030082,90.458,90.41,3.52172873]
[1772700655234,8.58030082,90.457,90.42,3.52172873]
[1772700655439,8.03742435,90.46,90.42,3.52172873]
[1772700656140,8.02264847,90.479,90.42,3.52172873]
[1772700656337,3.52172873,90.47,90.421,9.951]
[1772700656539,8.572539,90.469,90.421,9.951]
[1772700656730,8.02264847,90.476,90.43,3.52172873]
[1772700657038,8.02264847,90.476,90.44,3.52172873]
[1772700657239,8.02264847,90.476,90.43,3.52172873]
[1772700658537,8.02264847,90.476,90.431,9.95]
[1772700659439,8.02264847,90.476,90.441,9.949]
[1772700660038,8.07041679,90.493,90.457,9.947]
[1772700660234,8.07041679,90.493,90.45,3.52172873]
[1772700662034,8.07863818,90.469,90.42,3.52172873]
[1772700662736,8.07863818,90.469,90.362,154.909]
[1772700662943,8.07863818,90.459,90.41,3.52172873]
[1772700664443,8.07863818,90.459,90.416,9.952]
[1772700666539,8.07714348,90.449,90.369,19.915]
[1772700666738,8.07714348,90.449,90.4,3.52172873]
[1772700667245,8.0814919,90.459,90.412,9.952]
[1772700667735,8.0814919,90.459,90.42,9.951]
[1772700669339,8.0814919,90.459,90.428,9.951]
[1772700669548,3.52172873,90.47,90.42,3.52172873]
[1772700669847,8.08283534,90.469,90.42,3.52172873]
[1772700670545,8.08283534,90.469,90.438,9.949]
[1772700670841,8.08283534,90.469,90.42,3.52172873]
[1772700671047,8.08283534,90.469,90.446,9.949]
[1772700671446,8.08283534,90.469,90.43,3.52172873]
[1772700671748,8.08430268,90.479,90.445,9.949]
[1772700672150,8.08430268,90.469,90.42,3.52172873]
[1772700672445,8.08430268,90.469,90.42,5.29033145]
[1772700673445,8.08430268,90.469,90.427,9.951]
[1772700676453,8.08430268,90.469,90.43,5.30656602]
[1772700676750,3.52172873,90.48,90.431,1.78483729]
[1772700676947,3.94580086,90.479,90.431,1.78483729]
[1772700677354,3.94580086,90.479,90.433,9.95]
[1772700678247,3.94580086,90.469,90.424,9.951]
[1772700678453,3.94580086,90.459,90.424,9.951]